fUSD/lending_fUSD_20250812
["ID","MTS","AMOUNT","RATE_DAILY","PERIOD"]
[378829313,1755041438885,-504.7,0.00034546,2]
[378829314,1755041438894,-504.7,0.00034564,2]
[378829315,1755041438903,-504.7,0.00034583,2]
[378829316,1755041438913,-504.7,0.00034601,2]
[378829317,1755041438922,-504.7,0.00034619,2]
[378829318,1755041438931,-504.7,0.00034637,2]
[378829319,1755041438940,-504.7,0.00034655,2]
[378829320,1755041438949,-504.7,0.00034673,2]
[378829321,1755041438958,-504.7,0.00034692,2]
[378829322,1755041438967,-504.7,0.0003471,2]
[378829323,1755041438976,-504.7,0.00034728,2]
[378829324,1755041438985,-504.7,0.00034746,2]
[378829325,1755041438995,-504.7,0.00034764,2]
[378829326,1755041439003,-504.7,0.00034782,2]
[378829327,1755041439012,-504.7,0.00034801,2]
[378829328,1755041439021,-504.7,0.00034819,2]
[378829329,1755041439031,-504.7,0.00034837,2]
[378829330,1755041439041,-302.0,0.00035,14]
[378829331,1755041439050,-500.0,0.00035025,5]
[378829332,1755041439060,-731.07,0.000351,2]
[378829333,1755041439070,-2042.36,0.000351,14]
[378829334,1755041439082,-532.05,0.0003594,30]
[378829335,1755041439091,-60945.74241392,0.00036,2]
[378829336,1755041439100,-1839.11518347,0.00036046,2]
[378829337,1755041439109,-3004.02711452,0.00036046,2]
[378829338,1755041439119,-1074.24983652,0.00036703,9]
[378829339,1755041439128,-250.11970908,0.00037603,2]
[378829340,1755041439137,-151.0,0.00037703,7]
[378829341,1755041439147,-151.0,0.00037703,7]
[378829342,1755041439156,-151.0,0.00037703,7]
[378829343,1755041439165,-151.0,0.00037703,7]
[378829344,1755041439174,-151.0,0.00037703,7]
[378829345,1755041439184,-54859.71656511,0.00037703,2]
[378829346,1755041439193,-84269.7560234,0.00037703,2]
[378829347,1755041439202,-187841.83248782,0.00037703,2]
[378829348,1755041439211,-17508.00590695,0.00037703,2]
[378829349,1755041439220,-67048.68873142,0.00037703,2]
[378829350,1755041439230,-6267.16650703,0.00037703,7]
[378829351,1755041439239,-27201.31795846,0.00037703,2]
[378829352,1755041439249,-4702.24281766,0.00037703,2]
[378829353,1755041439260,-20798.03994832,0.00037703,2]
[378829354,1755041439274,-23245.67019725,0.00037703,2]
[378829355,1755041439284,-20450.00169063,0.00037703,2]
[378829356,1755041439293,-106053.59772885,0.00037703,2]
[378829357,1755041439302,-158.15543741,0.00037789,15]
[378829358,1755041439311,-700.0,0.000379,13]
[378829359,1755041439321,-175.17219344,0.00038,2]
[378829360,1755041439330,-153.0,0.00038,120]
[378829361,1755041439340,-155.0,0.00038,120]
[378829362,1755041439349,-191.14820203,0.00038414,2]
[378829363,1755041439358,-9999.999999,0.000385,120]
[378829364,1755041439367,-1000.0,0.00038591,2]
[378829365,1755041439377,-902.68186099,0.00038673,2]
[378829366,1755041439386,-399.999999,0.0003925,30]
[378829367,1755041439396,-1839.11518347,0.00039475,2]
[378829368,1755041439407,-3004.02711452,0.00039475,2]
[378829369,1755041439421,-452.60752921,0.0003952,30]
[378829370,1755041439431,-265.20738845,0.00039726,15]
[378829371,1755041439441,-5166.34353352,0.0004,120]
[378829372,1755041439451,-1011.0,0.000401,5]
[378829373,1755041439461,-155.0,0.000405,120]
[378829374,1755041439471,-250.11970902,0.00040653,2]
[378829375,1755041439481,-2042.36,0.000407,14]
[378829376,1755041439491,-158.94785746,0.000409,120]
[378829377,1755041439502,-158.94785743,0.000409,120]
[378829378,1755041439513,-158.94785743,0.000409,120]
[378829379,1755041439525,-158.94785743,0.000409,120]
[378829380,1755041439534,-158.94785743,0.000409,120]
[378829381,1755041439544,-158.94785743,0.000409,120]
[378829382,1755041439555,-158.94785743,0.000409,120]
[378829383,1755041439565,-158.94785743,0.000409,120]
[378829384,1755041439575,-158.94785743,0.000409,120]
[378829385,1755041439585,-158.94785743,0.000409,120]
[378829386,1755041439595,-158.94785743,0.000409,120]
[378829387,1755041439604,-158.94785743,0.000409,120]
[378829388,1755041439614,-158.94785743,0.000409,120]
[378829389,1755041439624,-158.94785743,0.000409,120]
[378829390,1755041439633,-153.0,0.000411,120]
[378829391,1755041439644,-843.0035059,0.0004126,2]
[378829392,1755041439654,-731.07,0.000413,2]
[378829393,1755041439663,-187.41,0.000416,2]
[378829394,1755041439673,-655.58405879,0.00041617,2]
[378829395,1755041439684,-161.8,0.00041669,120]
[378829396,1755041439697,-1276.30194894,0.00041678,2]
[378829397,1755041439707,-180.01297428,0.00041686,2]
[378829398,1755041439718,-999.618715,0.00041696,2]
[378829399,1755041439728,-2020.10889608,0.00041707,2]
[378829400,1755041439738,-5796.68782286,0.00041713,2]
[378829401,1755041439748,-1276.30194894,0.00041783,2]
[378829402,1755041439759,-6535.50370678,0.00041796,2]
[378829403,1755041439769,-999.618715,0.000418,2]
[378829404,1755041439779,-5796.68782286,0.00041825,2]
[378829405,1755041439790,-5796.68782286,0.00041834,2]
[378829406,1755041439801,-2020.10889608,0.00041881,2]
[378829407,1755041439812,-6535.50370678,0.00041881,2]
[378829408,1755041439821,-1276.30194894,0.00041882,2]
[378829409,1755041439831,-999.618715,0.00041894,2]
[378829411,1755041439842,-999.618715,0.000419,2]
[378829412,1755041439851,-1276.30194894,0.00041914,2]
[378829413,1755041439860,-180.01297428,0.00041915,2]
[378829414,1755041439869,-180.01297428,0.00041917,2]
[378829415,1755041439879,-5796.68782286,0.00041933,2]
[378829416,1755041439889,-6535.50370678,0.00041955,2]
[378829417,1755041439899,-180.01297428,0.00041957,2]
[378829418,1755041439909,-6535.50370678,0.00041957,2]
[378829419,1755041439920,-2020.10889608,0.00041965,2]
[378829420,1755041439930,-2020.10889608,0.00041996,2]
[378829421,1755041439940,-779.707,0.00042044,2]
[378829422,1755041439950,-893.0,0.00042044,2]
[378829423,1755041439959,-1253.0,0.00042044,2]
[378829424,1755041439969,-2669.454,0.00042044,2]
[378829425,1755041439980,-810.0,0.00042044,2]
[378829426,1755041439989,-2026.0,0.00042044,2]
[378829427,1755041439999,-635.784,0.00042044,2]
[378829428,1755041440010,-21466.0,0.00042044,2]
[378829429,1755041440021,-532.05,0.00042164,120]
[378829430,1755041440034,-1018.258,0.00042568,64]
[378829431,1755041440044,-180.734,0.00042568,64]
[378829432,1755041440054,-335.16,0.00042609,34]
[378829433,1755041440063,-11538.93,0.00042707,2]
[378829434,1755041440072,-536.12,0.00042707,30]
[378829435,1755041440081,-1839.11518347,0.00042905,15]
[378829436,1755041440091,-3004.02711452,0.00042905,15]
[378829437,1755041440100,-155.0,0.000431,120]
[378829438,1755041440109,-191.14820203,0.00043293,28]
[378829439,1755041440118,-1000.0,0.00043415,2]
[378829440,1755041440128,-902.68186099,0.00043465,2]
[378829441,1755041440138,-158.15543741,0.00043515,15]
[378829442,1755041440147,-250.11970902,0.00043702,12]
[378829443,1755041440156,-153.0,0.00043836,60]
[378829444,1755041440165,-153.0,0.00043836,60]
[378829445,1755041440174,-153.0,0.00043836,60]
[378829446,1755041440184,-153.0,0.00043836,60]
[378829447,1755041440194,-153.0,0.00043836,60]
[378829448,1755041440203,-153.0,0.00043836,60]
[378829449,1755041440212,-153.0,0.00043836,60]
[378829450,1755041440221,-153.0,0.00043836,60]
[378829451,1755041440230,-153.0,0.00043836,60]
[378829452,1755041440241,-153.0,0.00043836,60]
[378829453,1755041440250,-153.0,0.00043836,60]
[378829454,1755041440259,-153.0,0.00043836,60]
[378829455,1755041440268,-153.0,0.00043836,60]
[378829456,1755041440277,-153.0,0.00043836,60]
[378829457,1755041440286,-153.0,0.00043836,60]
[378829458,1755041440295,-153.0,0.00043836,60]
[378829459,1755041440304,-153.0,0.00043836,60]
[378829460,1755041440313,-153.0,0.00043836,60]
[378829461,1755041440322,-153.0,0.00043836,60]
[378829462,1755041440330,-242.0,0.00044,120]
[378829463,1755041440339,-153.0,0.000441,120]
[378829464,1755041440348,-458.98079534,0.00044214,2]
[378829465,1755041440358,-899.94551932,0.000445,120]
[378829466,1755041440367,-741.84,0.000446,120]
[378829467,1755041440378,-5713.31892014,0.00044966,90]
[378829468,1755041440387,-30247.87346487,0.00045,2]
[378829469,1755041440397,-2000.0,0.00045,120]
[378829470,1755041440406,-242.0,0.00045,120]
[378829471,1755041440416,-1813.80512981,0.00045,120]
[378829472,1755041440425,-10739.13312116,0.00045,30]
[378829473,1755041440435,-23532.69915554,0.00045,120]
[378829474,1755041440444,-282.219926,0.00045,30]
[378829475,1755041440454,-172.257702,0.00045,30]
[378829476,1755041440463,-151.0,0.00045,30]
[378829477,1755041440473,-5166.998,0.00045044,2]
[378829479,1755041440482,-173.23,0.00045244,30]
[378829481,1755041440491,-936.14,0.00045244,30]
[378829482,1755041440501,-1144.77,0.00045244,30]
[378829483,1755041440510,-155.0,0.000456,120]
[378829484,1755041440519,-1040.22973582,0.000459,120]
[378829485,1755041440528,-242.0,0.00046,120]
[378829486,1755041440537,-202.54289403,0.00046,30]
[378829487,1755041440547,-731.07,0.00046,2]
[378829488,1755041440556,-500.0,0.00046149,30]
[378829489,1755041440565,-194.61,0.00046169,120]
[378829490,1755041440574,-172.0,0.000463,120]
[378829491,1755041440583,-1839.11518347,0.00046334,15]
[378829492,1755041440592,-3004.02711452,0.00046334,15]
[378829493,1755041440603,-666.0,0.00046401,3]
[378829494,1755041440613,-23900.0,0.00046401,2]
[378829495,1755041440622,-170.0,0.00046403,7]
[378829496,1755041440631,-152.0,0.00046568,3]
[378829497,1755041440640,-1107.94,0.00046671,2]
[378829498,1755041440650,-250.11970902,0.00046752,25]
[378829499,1755041440659,-5577.1,0.00046808,7]
[378829500,1755041440670,-210.0,0.0004685,30]
[378829501,1755041440679,-750.99,0.00046908,2]
[378829502,1755041440691,-500.0,0.00046984,2]
[378829503,1755041440709,-242.0,0.00047,120]
[378829504,1755041440721,-171.77,0.00047022,2]
[378829505,1755041440730,-175.25450384,0.00047041,30]
[378829506,1755041440741,-500.0,0.00047122,60]
[378829507,1755041440750,-500.0,0.00047122,60]
[378829508,1755041440759,-500.0,0.00047122,60]
[378829509,1755041440769,-153.0,0.000472,120]
[378829510,1755041440778,-562.23,0.000472,7]
[378829511,1755041440788,-150.0,0.00047213,120]
[378829512,1755041440799,-250.0,0.0004727,120]
[378829513,1755041440808,-168.0,0.00047387,2]
[378829514,1755041440818,-292.4,0.00047396,2]
[378829515,1755041440829,-168.02,0.00047415,120]
[378829516,1755041440840,-175.25450384,0.00047562,30]
[378829517,1755041440850,-5268.52733476,0.000476,2]
[378829518,1755041440859,-500.0,0.0004767,60]
[378829519,1755041440868,-1000.0,0.00047687,120]
[378829520,1755041440877,-309.47,0.00047732,120]
[378829521,1755041440886,-167.3,0.00047761,2]
[378829522,1755041440896,-168.0,0.00047851,2]
[378829523,1755041440905,-863.98447715,0.0004788,100]
[378829524,1755041440916,-270.0,0.00047892,120]
[378829525,1755041440926,-210.0,0.0004794,30]
[378829526,1755041440935,-209.0,0.0004794,30]
[378829527,1755041440944,-200.0,0.00047949,2]
[378829528,1755041440953,-200.0,0.00047949,2]
[378829529,1755041440962,-200.0,0.00047949,2]
[378829530,1755041440971,-200.0,0.00047949,2]
[378829531,1755041440982,-200.0,0.00047949,2]
[378829532,1755041440992,-200.0,0.00047949,2]
[378829533,1755041441001,-200.0,0.00047949,2]
[378829534,1755041441010,-200.0,0.00047949,2]
[378829535,1755041441019,-200.0,0.00047949,2]
[378829536,1755041441028,-200.0,0.00047949,2]
[378829537,1755041441038,-200.0,0.00047949,2]
[378829538,1755041441047,-200.0,0.00047949,2]
[378829539,1755041441057,-200.0,0.00047949,2]
[378829540,1755041441066,-200.0,0.00047949,2]
[378829541,1755041441075,-200.0,0.00047949,2]
[378829542,1755041441087,-200.0,0.00047949,2]
[378829543,1755041441098,-200.0,0.00047949,2]
[378829544,1755041441108,-200.0,0.00047949,2]
[378829545,1755041441119,-200.0,0.00047949,2]
[378829546,1755041441130,-200.0,0.00047949,2]
[378829547,1755041441139,-168.0,0.00047968,2]
[378829548,1755041441148,-300.0,0.00047997,120]
[378829549,1755041441157,-166.70074287,0.00048,2]
[378829550,1755041441167,-2000.0,0.00048,120]
[378829551,1755041441176,-242.0,0.00048,120]
[378829552,1755041441185,-21194.63388058,0.00048,30]
[378829553,1755041441195,-399.999999,0.00048,120]
[378829554,1755041441204,-175.25450384,0.00048082,30]
[378829555,1755041441214,-690.31458513,0.0004813,120]
[378829556,1755041441224,-191.14820203,0.00048171,28]
[378829557,1755041441234,-155.0,0.000482,120]
[378829558,1755041441243,-500.0,0.00048218,60]
[378829559,1755041441254,-500.0,0.00048218,60]
[378829560,1755041441264,-500.0,0.00048218,60]
[378829561,1755041441273,-1000.0,0.00048239,2]
[378829562,1755041441282,-168.0,0.00048247,2]
[378829563,1755041441292,-155.57063368,0.0004835,2]
[378829564,1755041441301,-168.0,0.00048355,2]
[378829565,1755041441310,-532.05,0.00048388,120]
[378829566,1755041441319,-2042.36,0.000484,14]
[378829567,1755041441328,-151.16957197,0.00048517,120]
[378829568,1755041441338,-211.77135896,0.0004852,2]
[378829569,1755041441347,-427.86,0.00048552,2]
[378829570,1755041441356,-427.86,0.00048577,2]
[378829571,1755041441367,-175.25450384,0.00048603,30]
[378829572,1755041441376,-427.86,0.00048603,2]
[378829573,1755041441386,-427.86,0.00048629,2]
[378829574,1755041441395,-427.86,0.00048654,2]
[378829575,1755041441405,-427.86,0.0004868,2]
[378829576,1755041441414,-638.0386,0.000487,2]
[378829577,1755041441423,-1000.0,0.000487,2]
[378829578,1755041441433,-305.0,0.000487,2]
[378829579,1755041441442,-427.86,0.00048705,2]
[378829580,1755041441451,-427.86,0.00048731,2]
[378829581,1755041441461,-427.86,0.00048756,2]
[378829582,1755041441471,-500.0,0.00048766,60]
[378829583,1755041441480,-427.86,0.00048782,2]
[378829584,1755041441490,-281.26548144,0.00048793,120]
[378829585,1755041441500,-427.86,0.00048808,2]
[378829586,1755041441509,-251.9669,0.0004882,44]
[378829587,1755041441519,-650.20878153,0.0004883,2]
[378829588,1755041441529,-427.86,0.00048833,2]
[378829589,1755041441538,-427.86,0.00048859,2]
[378829590,1755041441547,-427.86,0.00048884,2]
[378829591,1755041441557,-1100.0,0.000489,17]
[378829592,1755041441567,-427.86,0.0004891,2]
[378829593,1755041441575,-427.86,0.00048935,2]
[378829594,1755041441585,-427.86,0.00048961,2]
[378829595,1755041441594,-427.86,0.00048986,2]
[378829596,1755041441604,-2000.0,0.00049,120]
[378829597,1755041441614,-242.0,0.00049,120]
[378829598,1755041441623,-399.999999,0.00049,2]
[378829599,1755041441633,-427.86,0.00049012,2]
[378829600,1755041441642,-427.86,0.00049038,2]
[378829601,1755041441652,-210.0,0.0004904,30]
[378829602,1755041441662,-209.0,0.0004904,30]
[378829603,1755041441671,-175.25450384,0.00049123,30]
[378829604,1755041441681,-5000.0,0.00049136,60]
[378829605,1755041441692,-292.4,0.00049173,2]
[378829606,1755041441703,-1000.0,0.00049205,2]
[378829607,1755041441712,-1127.61665504,0.00049214,60]
[378829608,1755041441721,-2345.90057406,0.00049215,2]
[378829609,1755041441730,-530.86115,0.00049215,2]
[378829610,1755041441741,-1347.81565168,0.00049215,2]
[378829611,1755041441751,-224.1377694,0.00049215,10]
[378829612,1755041441760,-842.45093874,0.00049215,120]
[378829613,1755041441771,-88888.0,0.00049215,120]
[378829614,1755041441781,-5000.0,0.00049215,120]
[378829615,1755041441791,-157.34111062,0.00049215,120]
[378829616,1755041441800,-157.34111062,0.00049215,120]
[378829617,1755041441809,-157.34111062,0.00049215,120]
[378829618,1755041441818,-157.34111062,0.00049215,120]
[378829619,1755041441827,-157.34111062,0.00049215,120]
[378829620,1755041441836,-157.34111062,0.00049215,120]
[378829621,1755041441845,-157.34111062,0.00049215,120]
[378829622,1755041441854,-157.34111062,0.00049215,120]
[378829623,1755041441863,-157.34111062,0.00049215,120]
[378829624,1755041441873,-157.34,0.00049215,120]
[378829625,1755041441882,-152.80943961,0.00049215,120]
[378829626,1755041441891,-152.80943961,0.00049215,120]
[378829627,1755041441901,-152.80943961,0.00049215,120]
[378829628,1755041441910,-152.80943961,0.00049215,120]
[378829629,1755041441919,-152.80943961,0.00049215,120]
[378829630,1755041441929,-152.80943961,0.00049215,120]
[378829631,1755041441938,-152.8,0.00049215,120]
[378829632,1755041441947,-164.50336107,0.00049215,120]
[378829633,1755041441956,-164.50336107,0.00049215,120]
[378829634,1755041441966,-164.50336107,0.00049215,120]
[378829635,1755041441975,-164.50336107,0.00049215,120]
[378829636,1755041441984,-164.50336107,0.00049215,120]
[378829637,1755041441993,-164.50336107,0.00049215,120]
[378829638,1755041442002,-164.50336107,0.00049215,120]
[378829639,1755041442011,-164.5,0.00049215,120]
[378829640,1755041442020,-158.15543741,0.00049242,15]
[378829641,1755041442029,-2030.00840216,0.000493,120]
[378829642,1755041442039,-168.0,0.0004931,2]
[378829643,1755041442048,-300.0,0.00049314,30]
[378829644,1755041442057,-300.0,0.00049314,30]
[378829645,1755041442067,-1127.61665504,0.00049314,60]
[378829646,1755041442076,-1127.61665504,0.00049314,60]
[378829647,1755041442086,-1127.61665504,0.00049314,60]
[378829648,1755041442095,-500.0,0.00049314,60]
[378829649,1755041442104,-500.0,0.00049314,60]
[378829650,1755041442113,-285.907719,0.00049314,120]
[378829651,1755041442123,-300.0,0.00049314,120]
[378829652,1755041442132,-416.37393588,0.00049314,120]
[378829653,1755041442141,-236.71804642,0.00049314,120]
[378829654,1755041442151,-500.0,0.00049314,120]
[378829655,1755041442161,-300.0,0.00049314,120]
[378829656,1755041442170,-500.0,0.00049314,120]
[378829657,1755041442179,-500.0,0.00049314,120]
[378829658,1755041442389,-311.1,0.00049314,120]
[378829659,1755041442399,-500.0,0.00049314,120]
[378829660,1755041442409,-322.6107,0.00049314,120]
[378829661,1755041442419,-1357.4837235,0.00049314,120]
[378829662,1755041442428,-500.0,0.00049314,120]
[378829663,1755041442439,-500.0,0.00049314,120]
[378829664,1755041442448,-334.5472959,0.00049314,120]
[378829665,1755041442457,-500.0,0.00049314,120]
[378829666,1755041442467,-500.0,0.00049314,120]
[378829667,1755041442476,-346.92554585,0.00049314,120]
[378829668,1755041442485,-500.0,0.00049314,120]
[378829669,1755041442494,-500.0,0.00049314,120]
[378829670,1755041442504,-500.0,0.00049314,120]
[378829671,1755041442514,-500.0,0.00049314,120]
[378829672,1755041442523,-1000.0,0.00049314,120]
[378829673,1755041442532,-359.76179104,0.00049314,120]
[378829674,1755041442541,-500.0,0.00049314,120]
[378829675,1755041442550,-500.0,0.00049314,120]
[378829676,1755041442560,-1000.0,0.00049314,120]
[378829677,1755041442569,-396.60237028,0.00049314,120]
[378829678,1755041442579,-500.0,0.00049314,120]
[378829679,1755041442588,-500.0,0.00049314,120]
[378829680,1755041442597,-1000.0,0.00049314,120]
[378829681,1755041442606,-1000.0,0.00049314,120]
[378829682,1755041442616,-1000.0,0.00049314,120]
[378829683,1755041442626,-1000.0,0.00049314,120]
[378829684,1755041442635,-1000.0,0.00049314,120]
[378829685,1755041442645,-1000.0,0.00049314,120]
[378829686,1755041442656,-1000.0,0.00049314,120]
[378829687,1755041442665,-1000.0,0.00049314,120]
[378829688,1755041442675,-1000.0,0.00049314,120]
[378829689,1755041442684,-1000.0,0.00049314,120]
[378829690,1755041442697,-1000.0,0.00049314,120]
[378829691,1755041442708,-1000.0,0.00049314,120]
[378829692,1755041442717,-1000.0,0.00049314,120]
[378829693,1755041442727,-1000.0,0.00049314,120]
[378829694,1755041442736,-151.0,0.00049314,120]
[378829695,1755041442746,-1000.0,0.00049314,120]
[378829696,1755041442756,-151.0,0.00049314,120]
[378829697,1755041442766,-1000.0,0.00049314,120]
[378829698,1755041442779,-200.0,0.00049314,120]
[378829699,1755041442789,-1000.0,0.00049314,120]
[378829700,1755041442798,-1000.0,0.00049314,120]
[378829701,1755041442807,-1000.0,0.00049314,120]
[378829702,1755041442816,-1037.0,0.00049314,120]
[378829703,1755041442826,-500.0,0.00049314,120]
[378829704,1755041442835,-1075.369,0.00049314,120]
[378829705,1755041442845,-1115.157653,0.00049314,120]
[378829706,1755041442854,-1156.41848616,0.00049314,120]
[378829707,1755041442863,-1199.20597015,0.00049314,120]
[378829708,1755041442873,-1243.57659104,0.00049314,120]
[378829709,1755041442883,-1205.50238499,0.00049314,120]
[378829710,1755041442892,-500.0,0.00049314,120]
[378829711,1755041442904,-500.0,0.00049314,120]
[378829712,1755041442913,-500.0,0.00049314,120]
[378829713,1755041442923,-160.0,0.00049314,120]
[378829714,1755041442933,-160.0,0.00049314,120]
[378829716,1755041442942,-160.0,0.00049314,120]
[378829717,1755041442951,-160.0,0.00049314,120]
[378829718,1755041442961,-160.0,0.00049314,120]
[378829719,1755041442970,-160.0,0.00049314,120]
[378829720,1755041442979,-160.0,0.00049314,120]
[378829721,1755041442988,-160.0,0.00049314,120]
[378829723,1755041442998,-160.0,0.00049314,120]
[378829724,1755041443007,-160.0,0.00049314,120]
[378829725,1755041443016,-160.0,0.00049314,120]
[378829726,1755041443025,-160.0,0.00049314,120]
[378829727,1755041443035,-160.0,0.00049314,120]
[378829728,1755041443044,-160.0,0.00049314,120]
[378829729,1755041443053,-160.0,0.00049314,120]
[378829730,1755041443062,-160.0,0.00049314,120]
[378829731,1755041443071,-160.0,0.00049314,120]
[378829732,1755041443081,-160.0,0.00049314,120]
[378829733,1755041443090,-160.0,0.00049314,120]
[378829734,1755041443099,-151.0,0.00049314,120]
[378829735,1755041443108,-160.0,0.00049314,120]
[378829736,1755041443118,-200.0,0.00049314,120]
[378829737,1755041443127,-207.4,0.00049314,120]
[378829738,1755041443135,-151.0,0.00049314,120]
[378829739,1755041443145,-215.0738,0.00049314,120]
[378829740,1755041443155,-223.0315306,0.00049314,120]
[378829741,1755041443164,-151.0,0.00049314,120]
[378829742,1755041443174,-231.28369723,0.00049314,120]
[378829743,1755041443183,-151.0,0.00049314,120]
[378829744,1755041443192,-151.0,0.00049314,120]
[378829745,1755041443202,-239.84119403,0.00049314,120]
[378829746,1755041443211,-248.71531821,0.00049314,120]
[378829747,1755041443220,-257.91778498,0.00049314,120]
[378829748,1755041443229,-267.46074303,0.00049314,120]
[378829749,1755041443238,-151.0,0.00049314,120]
[378829750,1755041443248,-277.35679052,0.00049314,120]
[378829751,1755041443257,-151.0,0.00049314,120]
[378829752,1755041443267,-287.61899177,0.00049314,120]
[378829753,1755041443277,-151.0,0.00049314,120]
[378829754,1755041443287,-298.26089446,0.00049314,120]
[378829755,1755041443296,-151.67161252,0.00049314,120]
[378829756,1755041443305,-309.29654756,0.00049314,120]
[378829757,1755041443315,-320.74051982,0.00049314,120]
[378829758,1755041443324,-332.60791905,0.00049314,120]
[378829759,1755041443333,-344.91441206,0.00049314,120]
[378829760,1755041443343,-1000.0,0.00049314,120]
[378829761,1755041443352,-1000.0,0.00049314,120]
[378829762,1755041443361,-357.6762453,0.00049314,120]
[378829763,1755041443371,-1000.0,0.00049314,120]
[378829764,1755041443381,-370.91026638,0.00049314,120]
[378829765,1755041443391,-1000.0,0.00049314,120]
[378829766,1755041443400,-402.74034294,0.00049314,120]
[378829767,1755041443409,-1000.0,0.00049314,120]
[378829768,1755041443419,-1000.0,0.00049314,120]
[378829769,1755041443430,-1062.39973563,0.00049314,120]
[378829770,1755041443439,-151.0,0.00049314,120]
[378829771,1755041443448,-151.0,0.00049314,120]
[378829772,1755041443458,-500.0,0.00049314,120]
[378829773,1755041443467,-151.0,0.00049314,120]
[378829774,1755041443476,-500.0,0.00049314,120]
[378829775,1755041443486,-151.0,0.00049314,120]
[378829776,1755041443496,-500.0,0.00049314,120]
[378829777,1755041443505,-151.0,0.00049314,120]
[378829778,1755041443514,-500.0,0.00049314,120]
[378829779,1755041443524,-500.0,0.00049314,120]
[378829780,1755041443533,-151.0,0.00049314,120]
[378829781,1755041443543,-500.0,0.00049314,120]
[378829782,1755041443552,-206.37372345,0.00049314,120]
[378829783,1755041443562,-250.0,0.00049314,120]
[378829784,1755041443571,-250.0,0.00049314,120]
[378829785,1755041443580,-250.0,0.00049314,120]
[378829786,1755041443589,-151.0,0.00049314,120]
[378829787,1755041443599,-250.0,0.00049314,120]
[378829788,1755041443609,-151.0,0.00049314,120]
[378829789,1755041443619,-250.0,0.00049314,120]
[378829790,1755041443628,-151.0,0.00049314,120]
[378829791,1755041443638,-250.0,0.00049314,120]
[378829792,1755041443647,-151.0,0.00049314,120]
[378829793,1755041443656,-250.0,0.00049314,120]
[378829794,1755041443666,-250.0,0.00049314,120]
[378829795,1755041443676,-151.0,0.00049314,120]
[378829796,1755041443686,-396.28077071,0.00049314,120]
[378829797,1755041443699,-151.0,0.00049314,120]
[378829798,1755041443711,-600.0,0.00049314,120]
[378829799,1755041443720,-600.0,0.00049314,120]
[378829800,1755041443730,-600.0,0.00049314,120]
[378829801,1755041443741,-600.0,0.00049314,120]
[378829802,1755041443750,-600.0,0.00049314,120]
[378829803,1755041443760,-600.0,0.00049314,120]
[378829804,1755041443771,-600.0,0.00049314,120]
[378829805,1755041443780,-600.0,0.00049314,120]
[378829806,1755041443790,-600.0,0.00049314,120]
[378829807,1755041443799,-600.0,0.00049314,120]
[378829808,1755041443809,-600.0,0.00049314,120]
[378829809,1755041443818,-600.0,0.00049314,120]
[378829810,1755041443827,-600.0,0.00049314,120]
[378829811,1755041443839,-600.0,0.00049314,120]
[378829812,1755041443848,-206.47436341,0.00049314,120]
[378829813,1755041443858,-600.0,0.00049314,120]
[378829814,1755041443867,-600.0,0.00049314,120]
[378829815,1755041443878,-600.0,0.00049314,120]
[378829816,1755041443890,-600.0,0.00049314,120]
[378829817,1755041443899,-600.0,0.00049314,120]